Cogmind - Beta 14 @@@ ROGUE MODE // 2024.10.06 @ 12:20:24 Player: siona Result: Core destroyed Performance ------------- Evolutions (0) 0 Regions Visited (4) 800 Robots Destroyed (47) 235 Value Destroyed (1193) 1193 Prototype IDs (0) 0 Alien Tech Used (0) 0 Bonus (0) 0 TOTAL SCORE: 2228 Bonus ------- None Cogmind --------- Core Integrity 0/250 Matter 235/300 Energy 265/265 System Corruption 1% Temperature Critical (589) Movement Treading (160) Location -8/Recycling Parts ------- > --- POWER (1) -------- Improved Ion Engine > --- PROPULSION (2) --- Light Treads Light Treads > --- UTILITY (2) ------ Light Armor Plating Hardened Light Armor Plating > --- WEAPON (2) ------- Improved Light Cannon Improved Light Cannon > --- INVENTORY (5) ---- Light Treads Light Armor Plating System Shield Battle Cannon Rocket Launcher Peak State ------------ > --- POWER ------------ Light Ion Engine > --- PROPULSION ------- Light Treads Light Treads > --- UTILITY ---------- Scrap Shield > --- WEAPON ----------- Improved Light Cannon Improved Light Cannon > --- INVENTORY -------- Scrap Shield Battle Cannon Rocket Launcher Scrap Shield Fragment [Rating: 12] Favorites ----------- Power Light Ion Engine Engine Light Ion Engine Propulsion Light Treads Treads Light Treads Utility Scrap Shield Device Seismic Detector Processor Signal Interpreter Protection Scrap Shield Weapon Improved Light Cannon Energy Gun EM Pulse Gun Ballistic Gun Assault Rifle Ballistic Cannon Improved Light Cannon Launcher Rocket Launcher Build | -11 -10 -10 -10 -8 ------- Run | Yrd Mat Min Sub Rec Slots Evolved . | . . . . . Power . | . . . . . Propulsion . | . . . . . Utility . | . . . . . Weapon . | . . . . . Parts Attached 29 | 6 4 . 12 7 Power 4 | 1 . . 2 1 Engine 4 | 1 . . 2 1 Core . | . . . . . Reactor . | . . . . . Propulsion 6 | 2 1 . 1 2 Treads 6 | 2 1 . 1 2 Leg . | . . . . . Wheel . | . . . . . Hover . | . . . . . Flight . | . . . . . Utility 11 | 1 1 . 5 4 Device 4 | 1 . . 3 . Storage . | . . . . . Processor 1 | . 1 . . . Hackware . | . . . . . Protection 6 | . . . 2 4 Artifact . | . . . . . Weapon 8 | 2 2 . 4 . Energy Gun 1 | 1 . . . . Energy Cannon . | . . . . . Ballistic Gun 1 | 1 . . . . Ballistic Cannon 5 | . 2 . 3 . Launcher 1 | . . . 1 . Special Weapon . | . . . . . Impact Weapon . | . . . . . Slashing Weapon . | . . . . . Piercing Weapon . | . . . . . Special Melee Weapon . | . . . . . Unidentified Prototypes . | . . . . . Parts Lost 7 | . . . 7 . Power 2 | . . . 2 . Propulsion 2 | . . . 2 . Utility 1 | . . . 1 . Weapon 2 | . . . 2 . Highest Loss Streak 3 | . . . 3 . To Critical Strikes . | . . . . . Average Slot Usage (%) 87 | . 89 100 80 88 Engine 13 | . 14 14 13 14 Treads 26 | . 28 28 25 27 Device 4 | . 14 14 . . Processor 2 | . 3 14 . . Protection 11 | . . . 13 18 Ballistic Cannon 25 | . 10 28 25 28 Peak Build Rating 12 | 6 9 9 12 12 Average Rating 9 | 4 6 9 10 9 On Entrance 7 | . 6 9 9 11 Naked Turns . | . . . . . Heaviest Build 31 | 10 14 14 31 31 Greatest Support 40 | 40 40 40 40 40 Greatest Overweight (x) 1 | . . . 1 1 Average Overweight (x) . | . . . . . Largest Inventory Capacity 5 | 5 5 5 5 5 Average Capacity 5 | 5 5 5 5 5 Most Carried 5 | 4 5 5 5 5 Average Carried 4 | 2 4 4 4 3 Final Capacity 5 | 5 5 5 5 5 Final Carried 5 | 4 5 5 2 5 Class Distribution -------------------- 79% | Mutant 20% | Scavenger-Mutant Dominant Class ---------------- Mutant | -10/Materials Mutant | -10/Mines Mutant | -10/Subcaves Scavenger-Mutant | -8/Recycling Resources | -11 -10 -10 -10 -8 ----------- Run | Yrd Mat Min Sub Rec Matter Collected 1456 | 219 217 135 502 383 Remotely . | . . . . . Salvage Created 1407 | 16 478 38 260 615 Parts 76 | 3 25 7 21 20 Haulers Intercepted 1 | . 1 . . . Recyclers Shooed 5 | . . . . 5 Parts Field Recycled . | . . . . . Retrieved Matter . | . . . . . Parts Self-Destructed 10 | . . . 10 . Prevented . | . . . . . Kills | -11 -10 -10 -10 -8 ------- Run | Yrd Mat Min Sub Rec Combat Hostiles Destroyed 33 | . 10 4 14 5 Guns 6 | . 6 . . . Cannons 27 | . 4 4 14 5 Classes Destroyed 11 | 1 6 . 3 1 Worker 1 | . 1 . . . Tunneler 1 | 1 . . . . Hauler 1 | . 1 . . . Recycler 7 | . 1 . . 6 Turret 2 | . . . 2 . Watcher 2 | . 2 . . . Swarmer 10 | . 3 2 5 . Grunt 9 | . 7 2 . . Sentry 5 | . . . 1 4 Subdweller 8 | . . . 8 . Scrapper 1 | . . . . 1 Best Kill Streak 6 | 1 3 2 6 5 Combat Bots Only 4 | . 3 2 4 1 Max Kills in Single Turn 1 | 1 1 1 1 1 Gunslinging . | . . . . . Exploded . | . . . . . Melee . | . . . . . Uniques/NPCs Destroyed . | . . . . . Combat | -11 -10 -10 -10 -8 -------- Run | Yrd Mat Min Sub Rec Hostile Shots Fired 215 | . 32 31 132 20 Missed 73 | . 10 6 54 3 Damage Taken 2003 | . 224 320 1070 389 Core 277 | . 14 25 94 144 Absorbed by Shields . | . . . . . Core Remaining (%) 100 | 100 . . . . Volleys Fired 144 | 1 32 14 67 30 Largest 2 | 2 2 2 2 2 Hottest 78 | 60 78 78 78 78 Shots Fired 270 | 2 64 28 117 59 Gun 42 | 2 40 . . . Cannon 221 | . 24 28 110 59 Launcher 7 | . . . 7 . Special . | . . . . . Kinetic 242 | 1 44 28 110 59 Thermal . | . . . . . Explosive 7 | . . . 7 . Electromagnetic 21 | 1 20 . . . Robot Hit Streak 10 | 1 8 8 10 6 Robot Miss Streak 6 | . 6 2 3 3 Penetration Max . | . . . . . Secondary Targets . | . . . . . Shots Hit Robots 155 | 1 36 16 72 30 Core Hits 69 | 1 19 5 32 12 Critical Kills . | . . . . . Critical Parts Destroyed . | . . . . . Critical Strikes 2 | . . . 2 . Blast 2 | . . . 2 . Melee Attacks . | . . . . . Impact . | . . . . . Slashing . | . . . . . Piercing . | . . . . . Sneak Attacks . | . . . . . Combat Hostiles . | . . . . . Follow-up Attacks . | . . . . . Damage Inflicted 3131 | 15 613 331 1537 635 Guns 286 | 15 271 . . . Cannons 2659 | . 309 331 1384 635 Explosions 186 | . 33 . 153 . Melee . | . . . . . Ramming . | . . . . . Kinetic 2783 | . 433 331 1384 635 Thermal 33 | . 33 . . . Explosive 153 | . . . 153 . Electromagnetic 162 | 15 147 . . . Impact . | . . . . . Slashing . | . . . . . Piercing . | . . . . . Highest Corruption 1 | . 1 1 1 1 Average Corruption 1 | . 1 1 1 1 Corruption Purged . | . . . . . Corruption Blocked . | . . . . . Effects 40 | . . 5 16 19 Message Errors 9 | . . 2 2 5 Matter Fused 6 | . . . 4 2 Heat Flow Errors 7 | . . . 3 4 Energy Discharges 10 | . . 2 5 3 Data Loss (minor) 4 | . . 1 . 3 Data Loss (major) 1 | . . . . 1 Misfires 1 | . . . 1 . Alerts 1 | . . . 1 . Weapon Failures 1 | . . . . 1 Overload Shots . | . . . . . Overflow Damage 4 | . . . 4 . Projectiles 4 | . . . 4 . Explosions . | . . . . . Melee . | . . . . . Knockbacks 23 | . 2 2 12 7 Impact . | . . . . . Kinetic 23 | . 2 2 12 7 Secondary . | . . . . . Self-Inflicted Damage . | . . . . . Shots . | . . . . . Rammed . | . . . . . Targets Rammed . | . . . . . Kicked . | . . . . . Crushed . | . . . . . Highest Temperature 589 | . 72 303 179 589 Average Temperature 96 | . 30 123 73 115 Received Heat Transfer 489 | . 81 147 129 132 Effects 4 | . . . . 4 Shutdowns 2 | . . . . 2 Damage (core) 2 | . . . . 2 Siege Activations . | . . . . . Robots Corrupted 1 | . 1 . . . Combat Hostiles . | . . . . . Parts Fried 2 | . 2 . . . Impact Corruptions . | . . . . . Robots Melted . | . . . . . Combat Hostiles . | . . . . . Parts Melted 1 | . . . 1 . Heat Transferred . | . . . . . Parts Sabotaged . | . . . . . Parts Stolen . | . . . . . Parts Stripped . | . . . . . Power Chain Reactions 1 | . 1 . . . Alert | -11 -10 -10 -10 -8 ------- Run | Yrd Mat Min Sub Rec Peak Influence 273 | 5 273 164 . 172 Initial 93 | . 3 62 . 93 Average 62 | . 116 70 . 44 Maximum Alert Level 1 | . 1 . . . Low Security (%) 96 | 100 81 100 . 100 Level 1 3 | . 18 . . . Level 2 . | . . . . . Level 3 . | . . . . . Level 4 . | . . . . . Level 5 . | . . . . . High Security . | . . . . . Max Security . | . . . . . Squads Dispatched 2 | . 2 . . . Investigation 1 | . 1 . . . Extermination . | . . . . . Reinforcement 1 | . 1 . . . Assault . | . . . . . Garrison . | . . . . . Intercept . | . . . . . Searches Triggered . | . . . . . Construction Impeded . | . . . . . Haulers Reinforced . | . . . . . Active Scanning Responses . | . . . . . Cargo Convoy Interrupts . | . . . . . Stealth | -11 -10 -10 -10 -8 --------- Run | Yrd Mat Min Sub Rec Distress Signals 2 | . 2 . . . Communications Jammed . | . . . . . Distress Signals . | . . . . . Times Spotted 41 | . 12 5 21 3 Peak Tracking Total 6 | . 3 3 6 1 Tactical Retreats 2 | . . . 2 . Traps | -11 -10 -10 -10 -8 ------- Run | Yrd Mat Min Sub Rec Traps Triggered 2 | . 2 . . . Indirectly . | . . . . . Trap Hack Attempts . | . . . . . Triggered . | . . . . . Disarmed . | . . . . . Reprogrammed . | . . . . . Reused . | . . . . . Traps Extracted . | . . . . . Installed . | . . . . . Triggered 1 | . 1 . . . Machines | -11 -10 -10 -10 -8 ---------- Run | Yrd Mat Min Sub Rec Machines Disabled 3 | . 1 . 2 . Max in Single Turn 1 | . 1 . 1 . Machines Repaired . | . . . . . Machines Dismantled . | . . . . . Machines Sabotaged . | . . . . . Overloaded Fab Kills . | . . . . . Hacking | -11 -10 -10 -10 -8 --------- Run | Yrd Mat Min Sub Rec Machines Accessed 8 | . . . . 8 Terminals 2 | . . . . 2 Fabricators . | . . . . . Repair Stations . | . . . . . Recycling Units 6 | . . . . 6 Scanalyzers . | . . . . . Garrison Access . | . . . . . Total Hacks 15 | . . . . 15 Successful 7 | . . . . 7 Failed 8 | . . . . 8 Catastrophic 2 | . . . . 2 Database Lockouts . | . . . . . Manual 14 | . . . . 14 Terminals 5 | . . . . 5 Fabricators . | . . . . . Repair Stations . | . . . . . Recycling Units 10 | . . . . 10 Scanalyzers . | . . . . . Garrison Access . | . . . . . Terminal Hacks 1 | . . . . 1 Branch Access Points 1 | . . . . 1 Fabricator Hacks . | . . . . . Repair Station Hacks . | . . . . . Recycling Unit Hacks . | . . . . . Scanalyzer . | . . . . . Garrison Access Hacks . | . . . . . Unauthorized Hacks 6 | . . . . 6 Terminals . | . . . . . Fabricators . | . . . . . Repair Stations . | . . . . . Recycling Units 6 | . . . . 6 Reject 6 | . . . . 6 Scanalyzers . | . . . . . Garrison Access . | . . . . . Data Cores Recovered . | . . . . . Used . | . . . . . Hacking Detections 4 | . . . . 4 Full Trace Events . | . . . . . Feedback Events . | . . . . . Feedback Blocked . | . . . . . Robot Schematics Acquired . | . . . . . Robots Built . | . . . . . Authchips . | . . . . . Time . | . . . . . Total Robot Build Rating . | . . . . . Part Schematics Acquired . | . . . . . Parts Built . | . . . . . Authchips . | . . . . . Time . | . . . . . Total Part Build Rating . | . . . . . Parts Repaired . | . . . . . Time . | . . . . . Parts Recycled . | . . . . . Recycled Matter . | . . . . . Retrieved Matter . | . . . . . Retrieved Components . | . . . . . Parts Scanalyzed . | . . . . . Part Schematics Acquired . | . . . . . Parts Damaged . | . . . . . Bothacking | -11 -10 -10 -10 -8 ------------ Run | Yrd Mat Min Sub Rec Used RIF Installer . | . . . . . Robots Hacked . | . . . . . Non-combat . | . . . . . Combat . | . . . . . Robot Hacks Applied . | . . . . . Relay Couplers Released . | . . . . . Fabnet Peak Effective % . | . . . . . Robots Rewired . | . . . . . Allies Hacked . | . . . . . Hacks Repelled . | . . . . . Allies | -11 -10 -10 -10 -8 -------- Run | Yrd Mat Min Sub Rec Total Allies . | . . . . . Largest Group . | . . . . . Highest-Rated Group . | . . . . . Highest-Rated Ally . | . . . . . Total Orders . | . . . . . Ally Attacks . | . . . . . Total Damage . | . . . . . Kills . | . . . . . Allies Corrupted . | . . . . . Allies Melted . | . . . . . Intel | -11 -10 -10 -10 -8 ------- Run | Yrd Mat Min Sub Rec Robot Analysis Total . | . . . . . Derelict Logs Recovered 4 | . . 2 2 . Drone Launches . | . . . . . Drone Recoveries . | . . . . . Exploration | -11 -10 -10 -10 -8 ------------- Run | Yrd Mat Min Sub Rec Turns Passed 4832 | 109 527 761 1928 1507 Spaces Moved 2532 | 61 262 432 979 798 Core 3 | 3 . . . . Treads 2529 | 58 262 432 979 798 Legs . | . . . . . Wheels . | . . . . . Hover . | . . . . . Flight . | . . . . . Fastest Speed 50 | 50 160 160 160 160 Average Speed 164 | 154 160 160 168 163 Slowest Speed 240 | 160 160 160 240 240 Overloaded Moves . | . . . . . Propulsion Burnouts . | . . . . . Robots Hopped . | . . . . . Cave-ins Triggered . | . . . . . Exploration Rate (%) 55 | 4 60 80 46 88 Regions Visited 4 Branch Regions 3 Pre-discovered Areas 1 | . . 1 . . Known Exits Taken 2 | . 1 1 . . Unknown Exits Taken 2 | 1 . . 1 . Scrap Searched 3 | . . 1 2 . Spaces Dug 1 | . . . . 1 Terrain Destroyed 36 | . 4 2 28 2 Melee . | . . . . . Projectile 5 | . 1 2 . 2 AOE 31 | . 3 . 28 . Terrain Rammed . | . . . . . Walls Destroyed . | . . . . . Machines Disabled . | . . . . . Actions | -11 -10 -10 -10 -8 --------- Run | Yrd Mat Min Sub Rec Total 2936 | 71 307 474 1142 942 Wait 196 | . . 27 68 101 Move 2528 | 60 261 431 978 798 Hop . | . . . . . Pick Up 14 | 4 4 1 3 2 Fast Attach 18 | 6 3 . 5 4 Attach 5 | . . . 5 . Detach . | . . . . . Swap 6 | . 1 . 2 3 Drop 17 | . 6 1 6 4 Fire 144 | 1 32 14 67 30 Melee . | . . . . . Ram . | . . . . . Kick . | . . . . . Crush . | . . . . . Escape Stasis . | . . . . . Rewire . | . . . . . Trap . | . . . . . Miscellaneous 8 | . . . 8 . Route ------- -11/Scrapyard -10/Materials (discovered 3 exits: *Mat / *Min x2) -10/Mines (discovered 2 exits: *Mat / *Sub) -10/Subcaves (discovered 3 exits: [*Mat x2] / *Rec) -8/Recycling (discovered 1 exit: [*Fac]) History --------- Turn | Location | Event 9 | -11/Scrapyard | Discovered new exit (range 16) 110 | -11/Scrapyard | Entered Materials 296 | -10/Materials | Discovered new exit (range 13) 310 | -10/Materials | Build established: Mutant 339 | -10/Materials | Discovered new exit (range 13) 481 | -10/Materials | Discovered new exit (range 16) 535 | -10/Materials | Identified exit to Mines 637 | -10/Materials | Entered Mines 644 | -10/Mines | Received a Rocket Launcher from a helpful Derelict 965 | -10/Mines | YI-UF0 nonchalantly dropped a Grenade Launcher on the ground 983 | -10/Mines | Learned Materials terminal intel 1231 | -10/Mines | Found a hidden stash of uninstalled traps 1263 | -10/Mines | Learned Materials stockpile data 1316 | -10/Mines | Discovered new exit (range 7) 1323 | -10/Mines | Learned location of Storage (-8) 1324 | -10/Mines | Identified exit to Materials 1382 | -10/Mines | Discovered new exit (range 10) 1394 | -10/Mines | Identified exit to Subcaves 1398 | -10/Mines | Entered Subcaves 1540 | -10/Subcaves | Shifting Twisted Machinery released Sub. Power Source 1545 | -10/Subcaves | Shifting Twisted Machinery released Piercing Trap 1559 | -10/Subcaves | Learned 2 Materials zone layouts 1568 | -10/Subcaves | Discovered new exit (range 7) 1616 | -10/Subcaves | Discovered new exit (range 16) 1701 | -10/Subcaves | Shifting Twisted Machinery released Sub. Monowheel 1702 | -10/Subcaves | Shifting Twisted Machinery released Sub. Beam Cannon 2162 | -10/Subcaves | Learned 2 Materials zone layouts 2261 | -10/Subcaves | Shifting Twisted Machinery released Sub. Monowheel 2306 | -10/Subcaves | Shifting Twisted Machinery released Sub. Monowheel 3083 | -10/Subcaves | Lost 3 parts (1p1n1u) 3192 | -10/Subcaves | Discovered new exit (range 14) 3208 | -10/Subcaves | Core integrity fell below 50% 3326 | -10/Subcaves | Entered Recycling 3908 | -8/Recycling | Scanned before Scraplab entrance 4146 | -8/Recycling | Build established: Scavenger-Mutant 4220 | -8/Recycling | Discovered new exit (range 16) 4815 | -8/Recycling | Angered Scraplab inhabitants 4831 | -8/Recycling | Core integrity fell below 20% 4834 | -8/Recycling | Core destroyed Last Messages --------------- 04398_ R-06 Scavenger collects Heat Sink. 04402_ R-06 Scavenger collects Broken Sub. Power Source. 04473_ System corrupted: Energy discharge (-74). 04548_ #Q2/C|ES4QQSEA12PZZL# 04629_ XZQSFVWLANZ=V4:TOYEP|S3I:XWK 04812_ The floor rises up to form a wall. 04818_ System corrupted: Heat flow error (+217). 04821_ 12-I6L(j) knocked back. 04824_ Power failure, Imp. Ion Engine shutdown. 04827_ 12-I6L(j) heat spikes uncontrollably. 04830_ 12-I6L(j) knocked back. 04831_ Overheating: Core damaged (-45). 04833_ 12-I6L(j) destroyed. 04834_ Power failure, Imp. Ion Engine shutdown. 04834_ Overheating: Core damaged (-37). Map ----- +----------------------------------------------------+ | ?????????????#####???????????????????????? | | ?????????????# ##########??????????????? | | ???????????### # #??????????????? | | ???????????#"" # """ #??????????????? | | ???????????#"Y # """ #??????????????? | | ???????????#"" # """ #??????????????? | | ???????????### + #??????????????? | | ????#####??#% # """ #??????????????? | | ????#% ??# % # """ #??????????????? | | ????# = #?#% # """ #??????????????? | | ????# %%#?### # #??????????????? | | ????#= #???# ##########??????????????? | | ????# #???# #???????????????????????? | | ????#]!! #???# #???????????????????????? | | ????# [#??## #???????????????????????? | | ###?# #??#% ###?????????????????????? | | #?# !#??## ""#?????????????????????? | | #?# #???# Y"#?????????????????????? | | " #?# #???# ""#?????????????????????? | | " #?# !!#???# ###?????????????????????? | | " #?? =#??## ##??????????????????????? | | #####+##### #???????######?????????? | | " # #???????# #?????????? | | " + #???????# #?????????? | | " # #???##### #### #????? | | # ###+##### #???# @/ =%%#???? | | " # ## #?## ##???# ### ##### #???? | | " # ## #??# #????# #?# #?????????? | | " # ## #??# ######+#?# #?????????? | | # ## #### # ! #?######?????????? | | + ## ##"" # #????????????????? | | # %# ##"T + ! #????????????????? | | ### ## ##"" # ! !#????????????????? | | ### ## #### # !#????????????????? | | ## + % # #????????????????? | | ## # # ! #????????????????? | | ## #% # #????????????????? | | ## #% % # ! #????????????????? | | ## #% # #????????????????? | | ## #### #! #????????????????? | | ######???# #! #????????????????? | | ####????##% %% # ! #????????????????? | | ## ####?##% ########????????????????? | | # #?# %% #???????????????????????? | | # #?## #???????????????????????? | | # #??# % #???????????????????????? | | # #??#+###+##???????????????????????? | | # #?? ???? ???????????????????????? | | + #?? ????? ??????????????????????? | | # #?? ?????? ????????????????????? | +----------------------------------------------------+ Best States ------------- Heat Dissipation 25 Energy Generation 15 Energy Capacity 265 Matter Stores 300 Matter Capacity 300 Sight Range 21 Terrain Scan Density 10 Armor Coverage 800 Evasion (%) 40 Recoil Reduction 2 Item Schematics ----------------- None Robot Schematics ------------------ None Fabricated ------------ Nothing Alien Tech Used ----------------- None Achievements -------------- True Hacker Challenges ------------ None Game ------ Seed TowerCoordinationCapacitor Manual? 0 Play Time 00:25:25 Cumulative 27.6 hours Start 2024.10.06 @ 11:55:42 End 2024.10.06 @ 12:20:24 Sessions 1 Manual Loads 0 Difficulty Rogue Special Mode None Game No. 46 Rogue 42 Adventurer 4 Explorer 0 Win Type - Total 2 Types 2/0/0/0/0/0/0/0/0 Lore% 26 Gallery% 27 Achievement% 32 Wizard Run 0 Options --------- Layout 1 ASCII 0 Keyboard 0 Movement Mouse Keybinds 0 Fullscreen 1 Font 32/SmallcapsGlow Map View 50x35 Zoom Use 0% Tactical HUD 1 Map Filters NONE Filters NONE Steam 1 RUN: e340075c-1cc6-4b46-9af9-03783ed640d7